Cogmind - Beta 13 @@@ ROGUE MODE // 2024.04.09 @ 14:06:26 Player: Jellyman Result: Self-destructed Performance ------------- Evolutions (2) 1000 Regions Visited (4) 800 Robots Destroyed (41) 205 Value Destroyed (1176) 1176 Prototype IDs (3) 60 Alien Tech Used (0) 0 Bonus (49) 49 TOTAL SCORE: 3290 Bonus ------- High Alert Combat Kills 49 Cogmind --------- Core Integrity 532/550 Matter 262/300 Energy 250/250 System Corruption 0% Temperature Cool (81) Movement Walking (190) Ox1 Location -8/Materials Parts ------- > --- POWER (1) -------- Ion Engine > --- PROPULSION (4) --- Aluminum Leg Aluminum Leg Aluminum Leg Aluminum Leg > --- UTILITY (4) ------ High-capacity Storage Unit Drone Bay (2/2) Drone Bay (1/2) Drone Bay (0/2) > --- WEAPON (2) ------- Particle Cannon Heavy Assault Rifle > --- INVENTORY (20) --- Ion Engine Aluminum Leg Aluminum Leg Beam Rifle Peak State ------------ > --- POWER ------------ Ion Engine > --- PROPULSION ------- Aluminum Leg Aluminum Leg Aluminum Leg Aluminum Leg > --- UTILITY ---------- High-capacity Storage Unit Drone Bay Drone Bay Drone Bay > --- WEAPON ----------- Particle Cannon Heavy Assault Rifle > --- INVENTORY -------- Ion Engine Aluminum Leg Aluminum Leg Beam Rifle [Rating: 25] Favorites ----------- Power Ion Engine Engine Ion Engine Power Core Light Nuclear Core Propulsion Aluminum Leg Treads Light Treads Leg Aluminum Leg Utility Small Storage Unit Device Drone Bay Storage Small Storage Unit Processor Terrain Scan Processor Protection Medium Armor Plating Weapon Heavy Assault Rifle Energy Gun Beam Rifle Energy Cannon Advanced Beam Cannon Ballistic Gun Heavy Assault Rifle Build | -11 -10 -9 -9 -8 ------- Run | Yrd Mat Mat Sto Mat Slots Evolved 4 | . . 2 . 2 Power . | . . . . . Propulsion 2 | . . 1 . 1 Utility 2 | . . 1 . 1 Weapon . | . . . . . Parts Attached 41 | 4 9 9 17 2 Power 5 | . 2 1 2 . Engine 4 | . 2 1 1 . Core 1 | . . . 1 . Reactor . | . . . . . Propulsion 14 | 3 2 2 6 1 Treads 5 | 2 . . 3 . Leg 9 | 1 2 2 3 1 Wheel . | . . . . . Hover . | . . . . . Flight . | . . . . . Utility 13 | 1 3 4 4 1 Device 7 | . 2 1 4 . Storage 2 | 1 . . . 1 Processor 1 | . . 1 . . Hackware . | . . . . . Protection 3 | . 1 2 . . Artifact . | . . . . . Weapon 9 | . 2 2 5 . Energy Gun 3 | . 1 . 2 . Energy Cannon 2 | . . 1 1 . Ballistic Gun 4 | . 1 1 2 . Ballistic Cannon . | . . . . . Launcher . | . . . . . Special Weapon . | . . . . . Impact Weapon . | . . . . . Slashing Weapon . | . . . . . Piercing Weapon . | . . . . . Special Melee Weapon . | . . . . . Unidentified Prototypes 1 | . . 1 . . Parts Lost 5 | . . 1 4 . Power 1 | . . 1 . . Propulsion . | . . . . . Utility 2 | . . . 2 . Weapon 2 | . . . 2 . Highest Loss Streak 3 | . . 1 3 . To Critical Strikes . | . . . . . Average Slot Usage (%) 98 | . 98 98 98 95 Engine 9 | . 14 11 7 9 Core 1 | . . . 3 . Treads 8 | . 16 . 11 . Leg 22 | . 11 31 22 36 Device 13 | . 3 11 18 27 Storage 9 | . 14 11 7 4 Protection 7 | . 9 11 5 . Energy Gun 5 | . 14 1 5 . Energy Cannon 5 | . . 9 5 9 Ballistic Gun 11 | . 14 11 11 9 Naked Turns . | . . . . . Heaviest Build 70 | 5 17 23 30 70 Greatest Support 60 | 40 40 30 60 40 Greatest Overweight (x) 1 | . . . . 1 Average Overweight (x) . | . . . . . Largest Inventory Capacity 20 | 8 8 8 8 20 Average Capacity 7 | 7 8 8 6 11 Most Carried 8 | 7 8 8 8 5 Average Carried 6 | 5 6 7 6 4 Final Capacity 20 | 8 8 8 5 20 Final Carried 8 | 7 8 8 5 4 Class Distribution -------------------- 60% | Mutant 39% | Scavenger-Mutant Dominant Class ---------------- Mutant | -10/Materials Mutant | -9/Materials Scavenger-Mutant | -9/Storage Scavenger-Mutant | -8/Materials Resources | -11 -10 -9 -9 -8 ----------- Run | Yrd Mat Mat Sto Mat Matter Collected 1063 | 216 183 184 480 . Remotely . | . . . . . Salvage Created 1609 | . 306 215 1088 . Parts 108 | . 22 17 69 . Haulers Intercepted . | . . . . . Recyclers Shooed 1 | . . . 1 . Parts Field Recycled . | . . . . . Retrieved Matter . | . . . . . Parts Self-Destructed . | . . . . . Prevented . | . . . . . Kills | -11 -10 -9 -9 -8 ------- Run | Yrd Mat Mat Sto Mat Combat Hostiles Destroyed 33 | . 7 4 22 . Guns 21 | . 4 2 15 . Cannons 8 | . . 2 6 . AOE 3 | . 3 . . . Classes Destroyed 8 | . 5 2 1 . Worker 2 | . . 1 1 . Builder 1 | . 1 . . . Recycler 3 | . 1 . 2 . Operator 1 | . 1 . . . Watcher 1 | . . . 1 . Swarmer 7 | . 3 . 4 . Grunt 17 | . 4 2 11 . Sentry 9 | . . 2 7 . Best Kill Streak 9 | . 3 3 9 . Combat Bots Only 8 | . 3 2 8 . Max Kills in Single Turn 3 | . 3 1 2 . Gunslinging 1 | . . . 1 . Exploded 3 | . 3 . . . Melee . | . . . . . Uniques/NPCs Destroyed . | . . . . . Combat | -11 -10 -9 -9 -8 -------- Run | Yrd Mat Mat Sto Mat Hostile Shots Fired 176 | . 27 21 117 11 Missed 46 | . 7 4 33 2 Damage Taken 1626 | . 277 242 970 137 Core 196 | . 40 35 103 18 Absorbed by Shields . | . . . . . Core Remaining (%) 83 | 100 84 . 65 . Volleys Fired 148 | . 23 36 85 4 Largest 2 | . 2 2 2 2 Hottest 91 | . 60 91 91 91 Shots Fired 277 | . 46 69 154 8 Gun 205 | . 46 36 119 4 Cannon 72 | . . 33 35 4 Launcher . | . . . . . Special . | . . . . . Kinetic 142 | . 23 36 79 4 Thermal 112 | . . 33 75 4 Explosive . | . . . . . Electromagnetic 23 | . 23 . . . Robot Hit Streak 7 | . 5 7 6 3 Robot Miss Streak 5 | . 4 3 5 1 Penetration Max . | . . . . . Secondary Targets 2 | . . . 2 . Max Gunslinging Chain 1 | . . . 1 . Shots Hit Robots 134 | . 28 27 74 5 Core Hits 60 | . 16 9 34 1 Critical Kills 1 | . . . 1 . Critical Parts Destroyed . | . . . . . Critical Strikes 3 | . . . 3 . Burn 2 | . . . 2 . Meltdown 1 | . . . 1 . Melee Attacks . | . . . . . Impact . | . . . . . Slashing . | . . . . . Piercing . | . . . . . Sneak Attacks . | . . . . . Combat Hostiles . | . . . . . Follow-up Attacks . | . . . . . Damage Inflicted 2286 | . 516 469 1196 105 Guns 1477 | . 391 199 824 63 Cannons 680 | . . 266 372 42 Explosions 120 | . 120 . . . Melee . | . . . . . Ramming 9 | . 5 4 . . Kinetic 977 | . 181 199 534 63 Thermal 1090 | . 120 266 662 42 Explosive . | . . . . . Electromagnetic 210 | . 210 . . . Impact . | . . . . . Slashing . | . . . . . Piercing . | . . . . . Highest Corruption . | . . . . . Average Corruption . | . . . . . Corruption Purged . | . . . . . Corruption Blocked . | . . . . . Overload Shots . | . . . . . Overflow Damage 18 | . 18 . . . Projectiles . | . . . . . Explosions 18 | . 18 . . . Melee . | . . . . . Knockbacks . | . . . . . Impact . | . . . . . Kinetic . | . . . . . Secondary . | . . . . . Self-Inflicted Damage 35 | . 35 . . . Shots 1 | . 1 . . . Rammed . | . . . . . Targets Rammed 3 | . 2 1 . . Kicked 3 | . 2 1 . . Crushed . | . . . . . Highest Temperature 424 | . 75 242 424 81 Average Temperature 101 | . 28 91 137 34 Received Heat Transfer 696 | . 135 105 375 81 Effects 10 | . . 4 6 . Shutdowns 1 | . . . 1 . Energy Bleed 1 | . . . 1 . Interference 7 | . . 4 3 . Matter Decay 1 | . . . 1 . Siege Activations . | . . . . . Robots Corrupted . | . . . . . Combat Hostiles . | . . . . . Parts Fried 1 | . 1 . . . Impact Corruptions . | . . . . . Robots Melted 1 | . . . 1 . Combat Hostiles 1 | . . . 1 . Parts Melted 6 | . . . 6 . Heat Transferred 2259 | . 150 481 1554 74 Parts Sabotaged . | . . . . . Parts Stolen . | . . . . . Parts Stripped . | . . . . . Power Chain Reactions 2 | . 2 . . . Alert | -11 -10 -9 -9 -8 ------- Run | Yrd Mat Mat Sto Mat Peak Influence 514 | . 100 167 514 168 Initial 153 | . . 40 31 153 Average 205 | . 45 98 357 154 Maximum Alert Level 2 | . . . 2 . Low Security (%) 60 | 100 100 100 14 100 Level 1 18 | . . . 40 . Level 2 21 | . . . 45 . Level 3 . | . . . . . Level 4 . | . . . . . Level 5 . | . . . . . High Security . | . . . . . Max Security . | . . . . . Squads Dispatched 7 | . . . 5 2 Investigation 1 | . . . 1 . Extermination . | . . . . . Reinforcement 2 | . . . 1 1 Assault . | . . . . . Garrison 4 | . . . 3 1 Intercept . | . . . . . Searches Triggered . | . . . . . Construction Impeded 1 | . . . 1 . Haulers Reinforced . | . . . . . Active Scanning Responses . | . . . . . Cargo Convoy Interrupts . | . . . . . Stealth | -11 -10 -9 -9 -8 --------- Run | Yrd Mat Mat Sto Mat Distress Signals 4 | . 1 1 2 . Communications Jammed . | . . . . . Distress Signals . | . . . . . Times Spotted 56 | . 13 10 25 8 Peak Tracking Total 6 | . 3 2 6 5 Tactical Retreats 2 | . . . 2 . Traps | -11 -10 -9 -9 -8 ------- Run | Yrd Mat Mat Sto Mat Traps Triggered 2 | . . 1 1 . Indirectly . | . . . . . Trap Hack Attempts . | . . . . . Triggered . | . . . . . Disarmed 6 | . . . 6 . Reprogrammed . | . . . . . Reused . | . . . . . Traps Extracted . | . . . . . Installed . | . . . . . Triggered . | . . . . . Machines | -11 -10 -9 -9 -8 ---------- Run | Yrd Mat Mat Sto Mat Machines Disabled 4 | . 2 1 1 . Max in Single Turn 1 | . 1 1 1 . Machines Repaired . | . . . . . Machines Dismantled . | . . . . . Machines Sabotaged . | . . . . . Overloaded Fab Kills . | . . . . . Hacking | -11 -10 -9 -9 -8 --------- Run | Yrd Mat Mat Sto Mat Machines Accessed 8 | . 4 1 3 . Terminals 7 | . 3 1 3 . Fabricators . | . . . . . Repair Stations . | . . . . . Recycling Units 1 | . 1 . . . Scanalyzers . | . . . . . Garrison Access . | . . . . . Total Hacks 18 | . 8 4 6 . Successful 10 | . 5 . 5 . Failed 8 | . 3 4 1 . Catastrophic . | . . . . . Database Lockouts . | . . . . . Manual . | . . . . . Terminals 16 | . 6 4 6 . Fabricators . | . . . . . Repair Stations . | . . . . . Recycling Units 2 | . 2 . . . Scanalyzers . | . . . . . Garrison Access . | . . . . . Terminal Hacks 9 | . 4 . 5 . Record 1 | . . . 1 . Part Schematic 1 | . . . 1 . Prototype ID Bank 1 | . . . 1 . Open Door 1 | . . . 1 . Emergency Access Points 1 | . 1 . . . Unreport Threat 2 | . 2 . . . Disarm Traps 1 | . . . 1 . Dispatch Records 1 | . 1 . . . Fabricator Hacks . | . . . . . Repair Station Hacks . | . . . . . Recycling Unit Hacks 1 | . 1 . . . Process 1 | . 1 . . . Scanalyzer . | . . . . . Garrison Access Hacks . | . . . . . Unauthorized Hacks . | . . . . . Terminals . | . . . . . Fabricators . | . . . . . Repair Stations . | . . . . . Recycling Units . | . . . . . Scanalyzers . | . . . . . Garrison Access . | . . . . . Data Cores Recovered 1 | . 1 . . . Used . | . . . . . Hacking Detections 2 | . 1 1 . . Full Trace Events . | . . . . . Feedback Events . | . . . . . Feedback Blocked . | . . . . . Robot Schematics Acquired . | . . . . . Robots Built . | . . . . . Authchips . | . . . . . Time . | . . . . . Total Robot Build Rating . | . . . . . Part Schematics Acquired 1 | . . . 1 . Parts Built . | . . . . . Authchips . | . . . . . Time . | . . . . . Total Part Build Rating . | . . . . . Parts Repaired . | . . . . . Time . | . . . . . Parts Recycled . | . . . . . Recycled Matter 114 | . 114 . . . Retrieved Matter . | . . . . . Retrieved Components . | . . . . . Parts Scanalyzed . | . . . . . Part Schematics Acquired . | . . . . . Parts Damaged . | . . . . . Bothacking | -11 -10 -9 -9 -8 ------------ Run | Yrd Mat Mat Sto Mat Used RIF Installer . | . . . . . Robots Hacked . | . . . . . Non-combat . | . . . . . Combat . | . . . . . Robot Hacks Applied . | . . . . . Relay Couplers Released . | . . . . . Fabnet Peak Effective % . | . . . . . Robots Rewired . | . . . . . Allies Hacked . | . . . . . Hacks Repelled . | . . . . . Allies | -11 -10 -9 -9 -8 -------- Run | Yrd Mat Mat Sto Mat Total Allies . | . . . . . Largest Group . | . . . . . Highest-Rated Group . | . . . . . Highest-Rated Ally . | . . . . . Total Orders . | . . . . . Ally Attacks . | . . . . . Total Damage . | . . . . . Kills . | . . . . . Allies Corrupted . | . . . . . Allies Melted . | . . . . . Intel | -11 -10 -9 -9 -8 ------- Run | Yrd Mat Mat Sto Mat Robot Analysis Total . | . . . . . Derelict Logs Recovered . | . . . . . Drone Launches 9 | . . . 7 2 Drone Recoveries 6 | . . . 3 3 Exploration | -11 -10 -9 -9 -8 ------------- Run | Yrd Mat Mat Sto Mat Turns Passed 1959 | 95 370 539 915 40 Spaces Moved 1087 | 60 189 335 484 19 Core 11 | 11 . . . . Treads 225 | 46 92 . 87 . Legs 851 | 3 97 335 397 19 Wheels . | . . . . . Hover . | . . . . . Flight . | . . . . . Fastest Speed 50 | 50 120 120 120 120 Average Speed 127 | 137 139 120 127 127 Slowest Speed 190 | 160 160 120 160 190 Overloaded Moves . | . . . . . Propulsion Burnouts . | . . . . . Robots Hopped . | . . . . . Cave-ins Triggered . | . . . . . Exploration Rate (%) 27 | 3 28 26 73 8 Regions Visited 4 Branch Regions 1 Pre-discovered Areas . | . . . . . Known Exits Taken . | . . . . . Unknown Exits Taken 4 | 1 1 1 1 . Scrap Searched . | . . . . . Spaces Dug . | . . . . . Terrain Destroyed 4 | . 4 . . . Melee . | . . . . . Projectile . | . . . . . AOE 4 | . 4 . . . Terrain Rammed . | . . . . . Walls Destroyed . | . . . . . Machines Disabled . | . . . . . Actions | -11 -10 -9 -9 -8 --------- Run | Yrd Mat Mat Sto Mat Total 1387 | 72 248 405 636 26 Wait 38 | . 13 13 12 . Move 1083 | 59 188 334 483 19 Hop . | . . . . . Pick Up 41 | 8 9 6 17 1 Fast Attach 5 | 2 . . 3 . Attach 18 | 2 4 4 6 2 Detach 1 | 1 . . . . Swap 18 | . 5 5 8 . Drop 32 | . 4 6 22 . Fire 148 | . 23 36 85 4 Melee . | . . . . . Ram . | . . . . . Kick 3 | . 2 1 . . Crush . | . . . . . Escape Stasis . | . . . . . Rewire . | . . . . . Trap . | . . . . . Miscellaneous . | . . . . . Route ------- -11/Scrapyard -10/Materials -9/Materials -9/Storage -8/Materials History --------- Turn | Location | Event 8 | -11/Scrapyard | Discovered new exit (range 16) 96 | -11/Scrapyard | Entered Materials 312 | -10/Materials | Build established: Mutant 420 | -10/Materials | Discovered new exit (range 9) 466 | -10/Materials | Entered another Materials area 466 | -9/Materials | Evolved 2 slots: Propulsion x1, Utility x1 475 | -9/Materials | Discovered new exit (range 16) 1005 | -9/Materials | Entered Storage 1202 | -9/Storage | Destroyed 8 combat bots 1209 | -9/Storage | Garrison activated, responded to threat 1381 | -9/Storage | Lost 3 parts (1u2w) 1468 | -9/Storage | Build established: Scavenger-Mutant 1895 | -9/Storage | Discovered new exit (range 16) 1920 | -9/Storage | Entered Materials 1920 | -8/Materials | Accompanied by 4 allies 1920 | -8/Materials | Evolved 2 slots: Propulsion x1, Utility x1 1949 | -8/Materials | Garrison activated, responded to threat 1960 | -8/Materials | Self-destructed Last Messages --------------- 01895_ EXIT=FOUND 01903_ Drone retrieved by Drone Bay. PARAMETERS=PROPULSION+1,UTILITY+1 LOCATION=UNKNOWN GOAL=ESCAPE 01934_ O-16 Technician: "IFF HANDSHAKE FAILED. SECURING TERMINAL." 01938_ ALERT: Hostiles spotted, dispatching reinforcements to Terminal M007. 01942_ Acquired Hcp. Storage Unit. 01944_ Drone destroyed. 01949_ G-47 Trooper calls for garrison reinforcements. 01949_ ALERT: Activating Garrison Access M001. 01950_ B-36 Bruiser emerges from the garrison. 01950_ L-31 Rogue emerges from the garrison. 01953_ Drone released from Drone Bay. 01953_ Drone retrieved by Drone Bay. 01954_ Drone released from Drone Bay. 01955_ Drone retrieved by Drone Bay. Map ----- +----------------------------------------------------+ | | | | | | | | | | | | | | | | | | | ?????????????????????????????????????????????????? | | ?????????????????????????##??????????????????????? | | ???????????????????????? ??????????????????????? | | ??????????????????????"" #??????????????????????? | | ???????????????????""""" #??????????????????????? | | ???????????????????""""" #??????????????????????? | | ?????????????????#? #??????????????????????? | | #########????????# " " ???????????????????????? | | #####????? "G" ????????????????????????? | | """ # #??????""" ?????????????????????????? | | """ # #??????? ??????????????????????????? | | """ # #?????###b################## ???????? | | + ###+### ??????? | | # %lg ??????? | | # % gg!! ??????? | | "Y" # n ! m ! ??????? | | """ #######+### @ #########????????????? | | #########??# #w #????????????????????? | | ???????????# # !! #????????????????????? | | ???????????# """ # !! #????????????????????? | | ???????????# """ # !! #????????????????????? | | ???????????# """ # #????????????????????? | | ???????????# # #????????????????????? | | ???????????##+##### + ???????????????????? | | ??????????????????# # "??????????????????? | | ??????????????????# #?"??????????????????? | | ??????????????????# ##" "####????????????????????? | | ??????????????????#w?#"R"#???????????????????????? | | ??????????????????# ?#"""#???????????????????????? | | ??????????????????# ??###????????????????????????? | | ??????????????????# ?????????????????????????????? | | ??????????????????# ?????????????????????????????? | | ?????????????????? ?????????????????????????????? | | ??????????????????# ?????????????????????????????? | | ?????????????????????????????????????????????????? | | ?????????????????????????????????????????????????? | | ?????????????????????????????????????????????????? | | ?????????????????????????????????????????????????? | | ?????????????????????????????????????????????????? | | ?????????????????????????????????????????????????? | | ?????????????????????????????????????????????????? | +----------------------------------------------------+ Best States ------------- Heat Dissipation 38 Energy Generation 14 Energy Capacity 250 Matter Stores 300 Matter Capacity 300 Sight Range 16 Terrain Scan Range 14 Terrain Scan Density 10 Armor Coverage 225 Evasion (%) 55 Recoil Reduction 3 Item Schematics ----------------- Imp. Light Cannon | -9/Storage | Hacked Robot Schematics ------------------ None Fabricated ------------ Nothing Alien Tech Used ----------------- None Achievements -------------- None Challenges ------------ None Game ------ Seed AntimissileAlphaSpoofer Manual? 0 Play Time 00:20:57 Cumulative 8.9 hours Start 2024.04.08 @ 21:41:49 End 2024.04.09 @ 14:06:26 Sessions 6 Manual Loads 0 Difficulty Rogue Special Mode None Game No. 23 Rogue 23 Adventurer 0 Explorer 0 Win Type - Total 0 Types 0/0/0/0/0/0/0/0/0 Lore% 5 Gallery% 16 Achievement% 11 Wizard Run 0 Options --------- Layout 2 ASCII 0 Keyboard 0 Movement Mouse Keybinds 0 Fullscreen 2 Font 24/Smallcaps Map View 50x44 Zoom Use 0% Tactical HUD 1 Map Filters NONE Filters NONE Steam 1 RUN: 9bd999e4-0bf8-4dbe-8c2d-ac30ffb33f70